bitfinex-derivatives/quotes_ETHF0:USTF0_20260316
["timestamp","ask_amount","ask_price","bid_price","bid_amount"]
[1773661322614,5.85325528,2272.1,2271.6,2.90130636]
[1773661323311,0.96870013,2272.1,2271.6,2.90130636]
[1773661323914,5.85325528,2272.1,2271.6,2.90130636]
[1773661328823,4.88455515,2272.1,2271.6,2.90130636]
[1773661331524,4.88455515,2272.2,2271.6,2.90130636]
[1773661336421,5.85349358,2272.1,2271.6,2.90130636]
[1773661337526,3.68925432,2272.6,2271.6,2.90130636]
[1773661337527,6.98561833,2272.9,2272.2,0.00407723]
[1773661337725,5.57805641,2272.9,2272.2,0.00407723]
[1773661338424,5.57805641,2272.9,2272.3,3.68827537]
[1773661338623,8.93293843,2273.1,2272.3,3.68827537]
[1773661338624,6.98561833,2272.8,2272.3,3.68827537]
[1773661338825,5.57805641,2272.8,2272.3,3.68827537]
[1773661339020,5.59070342,2272.6,2272.3,3.68827537]
[1773661339224,5.59070342,2272.6,2272.3,1.13185327]
[1773661339423,5.59070342,2272.6,2272.2,4.72850032]
[1773661339624,5.42764409,2272.5,2272.2,4.72850032]
[1773661340026,6.83520601,2272.6,2272.2,4.72850032]
[1773661340829,5.43039787,2272.5,2272.2,4.72850032]
[1773661341131,5.43039787,2272.5,2272.2,1.04022495]
[1773661342229,5.43039787,2272.5,2272.1,5.14189137]
[1773661342429,5.43039787,2272.5,2272.1,1.453616]
[1773661344834,13.42239787,2272.5,2272.1,1.453616]
[1773661346729,6.86675754,2272.4,2271.8,3.68827537]
[1773661346932,6.86675754,2272.4,2271.7,1.41806979]
[1773661347129,5.89781911,2272.2,2271.7,1.41806979]
[1773661347437,5.89781911,2272.2,2271.7,5.10634516]
[1773661347734,5.89781911,2272.2,2271.8,1.41176022]
[1773661349036,5.89781911,2272.2,2271.8,5.10003559]
[1773661349336,5.89781911,2272.2,2271.8,1.41176022]
[1773661349831,8.005,2272.1,2271.8,1.41176022]
[1773661351038,13.90281911,2272.1,2271.8,1.41176022]
[1773661351739,8.005,2272.1,2271.8,1.41176022]
[1773661351939,8.01,2272.1,2271.8,1.41176022]
[1773661352237,13.90781911,2272.1,2271.8,1.41176022]
[1773661352839,13.90781911,2272.1,2271.7,5.01275168]
[1773661353140,15.31538103,2272.1,2271.7,5.01275168]
[1773661353340,6.86675754,2272.0,2271.5,1.31712198]
[1773661353832,5.89781911,2271.8,2271.5,1.31712198]
[1773661354335,5.89781911,2271.8,2271.5,1.32153798]
[1773661354536,8.016,2271.7,2271.5,1.32153798]
[1773661359042,5.89781911,2271.9,2271.5,1.32153798]
[1773661359243,9.43556192,2271.8,2271.5,1.32153798]
[1773661362045,15.33338103,2271.8,2271.5,1.32153798]
[1773661366452,13.92581911,2271.8,2271.5,1.32153798]
[1773661366849,13.92581911,2271.8,2271.5,0.004416]
[1773661367652,13.92581911,2271.8,2271.5,1.51302148]
[1773661367852,8.051,2271.7,2271.5,1.51302148]
[1773661368153,4.12953935,2271.6,2271.5,1.51302148]
[1773661368355,8.05543259,2271.6,2271.5,1.51302148]
[1773661368554,8.05543259,2271.6,2271.5,0.004416]
[1773661369249,6.1937165,2271.5,2271.3,5.53435109]
[1773661369453,6.1937165,2271.5,2271.2,5.53435109]
[1773661369656,9.46299451,2271.6,2271.2,5.07148077]
[1773661369855,15.63225724,2271.6,2271.3,0.30403723]
[1773661370256,15.63225724,2271.6,2271.3,0.30794753]
[1773661370657,6.1812744,2271.5,2271.3,0.0039103]
[1773661370853,9.46299451,2271.6,2271.3,0.0039103]
[1773661370854,1.41099451,2271.6,2271.3,0.27363383]
[1773661371253,8.059,2271.5,2271.3,0.27363383]
[1773661371463,15.65226891,2271.6,2271.3,0.27363383]
[1773661372058,6.17707797,2271.5,2271.3,0.0039103]
[1773661372256,6.17707797,2271.5,2271.1,0.31816545]
[1773661373362,6.17707797,2271.5,2271.1,0.32231456]
[1773661374356,1.41099451,2271.6,2271.1,0.32231456]
[1773661374559,8.067,2271.5,2271.1,0.32231456]
[1773661374759,0.00343259,2271.6,2271.1,0.32231456]
[1773661374960,1.04621246,2271.5,2271.2,0.22011]
[1773661375266,0.00343259,2271.6,2271.2,0.22011]
[1773661375565,0.00343259,2271.6,2271.3,0.00117522]
[1773661379365,0.00343259,2271.6,2271.4,0.22009]
[1773661379560,0.75311909,2271.6,2271.4,0.22009]
[1773661379760,0.68217903,2271.6,2271.4,0.22009]
[1773661380063,7.06743833,2271.6,2271.4,0.22009]
[1773661380457,0.68691653,2271.6,2271.4,0.22009]
[1773661381758,8.074,2271.7,2271.4,0.22009]
[1773661381962,6.41254806,2272.0,2271.4,0.22009]
[1773661382164,8.075,2271.9,2271.4,0.22009]
[1773661382365,6.41254806,2272.0,2271.4,0.22009]
[1773661382366,8.076,2272.0,2271.4,0.22009]
[1773661382765,8.08079752,2272.0,2271.4,0.22009]
[1773661383063,0.00479752,2272.0,2271.4,0.22009]
[1773661383762,6.39456777,2272.0,2271.5,0.0148411]
[1773661385869,0.00479752,2272.0,2271.5,0.0148411]
[1773661386268,6.40877388,2272.0,2271.5,0.0148411]
[1773661389769,6.40877388,2272.0,2271.4,0.22009]
[1773661390668,6.30952184,2271.7,2271.1,6.79426989]
[1773661390864,6.30952184,2271.7,2271.1,0.08709649]
[1773661391069,14.40452184,2271.6,2271.2,0.08294738]
[1773661391269,6.30952184,2271.6,2271.2,0.08294738]
[1773661393177,6.30952184,2271.6,2271.1,6.79426989]
[1773661393376,6.30952184,2271.6,2271.1,6.86488591]
[1773661393572,14.41252184,2271.6,2271.1,6.86488591]
[1773661393770,6.30698073,2271.5,2271.2,0.0629644]
[1773661394971,6.30698073,2271.5,2271.1,6.79426989]
[1773661395378,6.30698073,2271.5,2271.1,6.82394256]
[1773661398178,6.30698073,2271.5,2271.1,6.79426989]
[1773661399578,6.30698073,2271.5,2271.3,5.53688453]
[1773661401779,14.42080805,2271.7,2271.3,5.53688453]
[1773661402784,6.29513176,2271.6,2271.3,5.53688453]
[1773661402986,7.26442092,2271.6,2271.3,3.01883183]
[1773661403185,7.26442092,2271.6,2271.1,2.47940907]
[1773661403385,7.26442092,2271.6,2271.1,9.26952985]
[1773661403585,5.98099692,2271.3,2271.1,0.00414911]
[1773661403886,5.2655114,2271.3,2271.1,0.00414911]
[1773661404081,5.98099692,2271.5,2271.2,0.22011]
[1773661405976,8.133,2271.7,2271.2,3.69015331]
[1773661405977,5.98099692,2271.7,2271.2,3.69015331]
[1773661406183,14.11899692,2271.6,2271.2,3.69015331]
[1773661406582,5.98099692,2271.5,2271.2,0.22011]
[1773661408982,5.98099692,2271.5,2271.1,0.00414911]
[1773661409187,5.98099692,2271.3,2271.1,0.00414911]
[1773661410089,5.98099692,2271.1,2270.8,0.22015]
[1773661410387,5.98099692,2271.3,2270.8,6.01379018]
[1773661411089,5.98099692,2271.3,2270.8,6.0181073]
[1773661415287,5.98099692,2271.3,2270.8,0.22446712]
[1773661416791,6.95028608,2271.1,2270.8,0.22446712]
[1773661418186,6.95028608,2271.1,2270.6,8.15]
[1773661418492,5.98099692,2270.8,2270.3,6.01383018]
[1773661419184,5.98099692,2270.8,2270.3,6.01898913]
[1773661425287,5.98099692,2270.6,2270.3,0.22534895]
[1773661425487,6.95028608,2270.5,2270.3,0.22534895]
[1773661425698,6.95028608,2270.5,2270.1,5.79364018]
[1773661426099,6.95028608,2270.5,2270.3,0.22019]
[1773661426696,6.95028608,2270.5,2270.3,0.22373633]
[1773661426895,6.95028608,2270.5,2270.0,5.79364018]
[1773661427895,6.95028608,2270.5,2270.0,5.79705259]
[1773661428998,5.98099692,2270.5,2270.0,5.79705259]
[1773661432904,5.98099692,2270.5,2270.0,11.32015662]
[1773661433103,5.98099692,2270.5,2270.0,5.79705259]
[1773661433700,6.95028608,2270.5,2270.0,0.00341241]
[1773661434007,6.08684385,2270.2,2270.0,0.00341241]
[1773661434196,6.09156866,2270.2,2270.0,0.00341241]
[1773661435997,5.99755616,2270.7,2270.2,6.1175261]
[1773661436204,5.99755616,2270.9,2270.2,6.1175261]
[1773661437005,6.00113922,2270.9,2270.2,6.1175261]
[1773661438008,5.99755616,2270.7,2270.2,6.1175261]
[1773661440705,5.99755616,2270.5,2270.1,5.52310403]
[1773661440909,5.99755616,2270.3,2270.0,5.52651644]
[1773661444317,5.99755616,2270.3,2270.0,0.00341241]
[1773661444811,14.20155616,2270.7,2270.2,5.8973161]
[1773661445012,5.99755616,2270.6,2270.2,5.8973161]
[1773661447409,6.00113922,2270.9,2270.2,5.8973161]
[1773661447610,6.00113922,2270.9,2270.4,5.8973161]
[1773661448512,6.00113922,2270.9,2270.4,11.42042013]
[1773661452021,6.00113922,2270.9,2270.4,5.52310403]
[1773661455623,6.00113922,2270.9,2270.4,11.29568848]
[1773661455825,5.99755616,2270.8,2270.4,11.29568848]
[1773661456124,14.22213922,2270.9,2270.5,5.77258445]
[1773661456324,5.99755616,2270.8,2270.5,5.77258445]
[1773661456526,5.99755616,2270.8,2270.4,11.27709415]
[1773661458627,5.99755616,2270.8,2270.4,5.52310403]
[1773661462526,5.99755616,2270.8,2270.1,6.90620249]
[1773661462829,9.19429604,2270.9,2270.0,13.03775269]
[1773661462830,6.06312622,2270.6,2270.0,13.03775269]
[1773661465024,6.06312622,2270.6,2270.0,6.9096149]
[1773661465224,6.06312622,2270.6,2270.0,0.00341241]
[1773661465824,9.19429604,2270.9,2270.0,0.00341241]
[1773661465825,6.06312622,2270.4,2270.0,0.00341241]
[1773661470730,6.06312622,2270.8,2270.2,6.12813779]
[1773661472129,0.00358306,2270.9,2270.2,6.12813779]
[1773661473934,0.00358306,2270.9,2270.2,13.03434028]
[1773661474134,0.00358306,2270.9,2270.3,6.12813779]
[1773661476235,6.06312622,2271.2,2270.5,7.09785077]
[1773661476535,6.06312622,2271.2,2270.6,6.12813779]
[1773661476736,14.33612622,2271.4,2270.6,6.34830779]
[1773661476936,6.06312622,2271.4,2270.6,6.34830779]
[1773661477233,6.06760896,2271.4,2270.6,6.34830779]
[1773661479831,6.06760896,2271.4,2270.8,6.12813779]
[1773661488341,6.06760896,2271.4,2270.6,0.22017]
[1773661488543,6.06760896,2271.4,2270.6,6.34830779]
[1773661489441,0.00448274,2271.4,2271.1,6.12813779]
[1773661489641,6.06312622,2271.6,2271.1,6.12813779]
[1773661490141,6.06312622,2271.6,2271.0,0.22013]
[1773661490337,6.06312622,2271.6,2271.0,6.34826779]
[1773661490537,6.06835438,2271.6,2271.0,0.22013]
[1773661490742,6.06835438,2271.6,2270.9,6.12813779]
[1773661491845,6.06312622,2271.5,2270.9,6.12813779]
[1773661494847,6.06312622,2271.5,2270.9,6.34827779]
[1773661495444,0.00522816,2271.6,2270.7,11.48277577]
[1773661495445,5.83612283,2271.3,2270.7,11.48277577]
[1773661495651,5.83612283,2271.3,2270.7,5.96067316]
[1773661496445,5.83612283,2271.5,2270.9,5.96067316]
[1773661499454,5.83612283,2271.5,2271.0,5.96067316]
[1773661501845,5.83612283,2271.5,2270.9,5.14198404]
[1773661503251,5.83612283,2271.5,2270.7,5.96067316]
[1773661503453,5.83612283,2271.5,2270.7,12.86687565]
[1773661503653,5.83612283,2271.5,2270.8,5.96067316]
[1773661505154,5.83612283,2271.5,2270.9,5.96067316]
[1773661505356,5.83612283,2271.5,2271.1,5.96067316]
[1773661506154,3.19782856,2271.5,2271.1,5.96067316]
[1773661506753,5.84135099,2271.6,2271.1,5.96067316]
[1773661507852,5.83612283,2272.1,2271.3,6.93038614]
[1773661508054,5.83612283,2272.1,2271.6,5.96067316]
[1773661508253,5.83612283,2272.6,2271.6,5.96067316]
[1773661508657,5.83612283,2272.6,2271.7,5.96067316]
[1773661508854,5.84147487,2272.6,2271.7,5.96479956]
[1773661509358,5.84147487,2272.6,2271.7,6.93451254]
[1773661509554,5.84147487,2272.6,2271.9,5.96067316]
[1773661510752,5.84147487,2272.6,2271.9,6.928861]
[1773661511562,5.84147487,2272.6,2271.9,7.148901]
[1773661514259,5.83612283,2272.3,2271.9,6.18071316]
[1773661515058,6.80431067,2272.4,2271.9,6.18071316]
[1773661516065,5.83612283,2272.4,2271.9,6.18071316]
[1773661517765,5.83612283,2272.4,2271.9,0.22004]
[1773661518367,5.83612283,2272.4,2271.7,14.93179956]
[1773661518566,6.80431067,2272.4,2271.7,14.93179956]
[1773661518768,6.80431067,2272.4,2271.7,5.96479956]
[1773661518968,5.83612283,2272.1,2271.7,5.96479956]
[1773661519968,0.96818784,2272.4,2271.7,5.96479956]
[1773661520174,5.84147487,2272.6,2272.0,0.22003]
[1773661520468,6.80966271,2272.6,2271.7,5.96479956]
[1773661521268,5.83612283,2272.3,2271.7,5.96479956]
[1773661521572,5.83612283,2272.3,2271.8,5.96067316]
[1773661521765,5.83612283,2272.1,2271.7,5.96479956]
[1773661522670,0.96818784,2272.5,2271.7,5.96479956]
[1773661522671,5.80025924,2272.4,2271.7,5.96479956]
[1773661522876,5.80025924,2272.4,2271.9,5.63653401]
[1773661524577,5.80025924,2272.4,2271.9,5.85657401]
[1773661524776,0.00535204,2272.6,2272.1,5.63653401]
[1773661524777,5.80561128,2272.6,2272.1,5.63653401]
[1773661527380,0.00535204,2272.6,2272.1,5.63653401]
[1773661529477,0.00535204,2272.6,2272.3,5.63653401]
[1773661529681,5.80025924,2273.0,2272.4,5.63653401]
[1773661530581,5.80545705,2273.0,2272.4,5.63653401]
[1773661531581,5.80545705,2273.0,2272.6,5.63653401]
[1773661531982,0.00519781,2273.0,2272.6,5.63653401]
[1773661532380,0.00519781,2273.0,2272.6,14.69153401]
[1773661532577,0.00519781,2273.0,2272.7,5.63653401]
[1773661534384,5.80025924,2272.8,2272.4,11.14731388]
[1773661534584,5.80025924,2272.8,2272.4,14.57777987]
[1773661534785,5.80025924,2272.8,2272.4,20.21431388]
[1773661535178,5.80025924,2272.8,2272.5,5.63653401]
[1773661536080,5.80025924,2272.8,2272.4,14.70353401]
[1773661536281,5.80025924,2272.8,2272.4,20.21431388]
[1773661537275,5.80025924,2272.8,2272.5,5.63653401]
[1773661538784,5.80025924,2272.9,2272.5,5.63653401]
[1773661539085,5.80025924,2272.9,2272.5,11.14731388]
[1773661539480,5.80025924,2272.9,2272.6,5.63653401]
[1773661540280,0.00519781,2273.0,2272.6,5.63653401]
[1773661540680,5.80545705,2273.0,2272.6,5.63653401]
[1773661542482,0.00519781,2273.0,2272.6,5.63653401]
[1773661545486,5.80545705,2273.0,2272.6,5.63653401]
[1773661546585,0.00519781,2273.0,2272.6,5.63653401]
[1773661546790,5.80545705,2273.0,2272.6,5.63653401]
[1773661548689,0.00519781,2273.0,2272.6,5.63653401]
[1773661550283,5.17797199,2273.9,2272.7,0.21996]
[1773661550484,5.17797199,2275.9,2274.3,5.63653401]
[1773661550686,5.1806247,2275.3,2274.2,5.63653401]
[1773661551286,5.18577006,2275.3,2274.3,8.77474315]
[1773661551591,5.18577006,2275.3,2274.4,5.09958734]
[1773661551785,5.47460572,2275.3,2274.5,5.09958734]
[1773661551985,5.47460572,2275.3,2274.6,5.09958734]
[1773661552183,5.47460572,2275.3,2274.2,5.64114598]
[1773661552889,5.47460572,2275.3,2274.3,5.43599973]
[1773661553099,5.58094863,2275.1,2274.3,5.43599973]
[1773661553587,5.58094863,2275.1,2274.2,0.00461197]
[1773661553793,5.58094863,2275.1,2274.2,5.4406117]
[1773661554591,5.54018011,2274.8,2274.1,5.43599973]
[1773661554792,5.54018011,2274.8,2274.1,4.7226117]
[1773661555597,5.54018011,2274.8,2274.1,4.7275821]
[1773661558797,6.89397793,2274.7,2274.1,4.7275821]
[1773661558988,5.9273489,2274.4,2274.1,0.0049704]
[1773661559188,5.9273489,2274.2,2273.6,6.11319209]
[1773661559391,6.89397793,2274.1,2273.6,6.11319209]
[1773661559787,5.9273489,2273.8,2273.4,6.11319209]
[1773661560091,5.9273489,2273.8,2273.4,3.77194034]
[1773661560797,5.9273489,2273.8,2273.4,0.00567631]
[1773661560992,5.9273489,2273.8,2273.1,6.11319209]
[1773661561397,5.9273489,2273.8,2273.0,6.11319209]
[1773661561993,5.9273489,2273.8,2273.0,6.11632424]
[1773661562193,5.9273489,2274.0,2273.0,6.11632424]
[1773661562396,5.9273489,2274.0,2273.1,6.11319209]
[1773661563897,5.9273489,2274.0,2273.2,6.11319209]
[1773661565405,5.9273489,2273.8,2273.2,6.11319209]
[1773661565805,5.9273489,2273.8,2273.3,6.11319209]
[1773661569404,14.3143489,2273.9,2273.4,6.11319209]
[1773661569996,5.9273489,2273.8,2273.4,6.11319209]
[1773661571204,5.9273489,2273.8,2273.2,9.7883479]
[1773661572904,5.9273489,2273.8,2273.0,3.67828796]
[1773661573105,5.9273489,2273.8,2273.0,0.00313215]
[1773661573304,5.9273489,2273.8,2273.0,6.11632424]
[1773661573707,5.9273489,2273.6,2273.0,6.11632424]
[1773661574008,5.9273489,2273.4,2273.0,6.11632424]
[1773661575105,5.9273489,2273.4,2273.0,0.00313215]
[1773661575610,5.9273489,2273.4,2273.0,6.11632424]
[1773661576309,5.9273489,2273.4,2273.0,0.00313215]
[1773661576810,5.9273489,2273.4,2273.0,6.11632424]
[1773661578213,14.3263489,2273.4,2273.0,6.11632424]
[1773661579314,5.9273489,2273.3,2273.0,6.11632424]
[1773661580014,14.3293489,2273.4,2273.0,6.11632424]
[1773661580410,5.9273489,2273.4,2273.0,6.11632424]
[1773661580804,5.9273489,2273.4,2273.0,9.79148005]
[1773661581010,5.9273489,2273.4,2273.1,6.11319209]
[1773661582217,8.402,2273.5,2273.1,6.11319209]
[1773661582519,14.37289936,2273.5,2273.2,6.02852542]
[1773661582817,14.37621802,2273.6,2273.2,6.02852542]
[1773661583418,5.96789936,2273.5,2273.2,6.02852542]
[1773661583618,8.406,2273.7,2273.3,6.02852542]
[1773661584115,5.96789936,2273.6,2273.3,6.02852542]
[1773661584508,5.97306817,2273.6,2273.3,6.02852542]
[1773661584711,5.97306817,2273.6,2273.2,9.70368123]
[1773661585219,5.97306817,2273.6,2273.2,3.67515581]
[1773661585519,5.97306817,2273.6,2273.0,11.55192136]
[1773661585713,5.97306817,2273.6,2273.0,5.52339594]
[1773661586115,5.97306817,2273.6,2273.0,0.00313215]
[1773661587221,5.96789936,2273.4,2273.0,0.00313215]
[1773661590114,5.96789936,2273.4,2272.9,11.54878921]
[1773661590115,5.96789936,2273.4,2272.9,5.49987355]
[1773661590319,5.96789936,2273.2,2272.7,12.93472791]
[1773661590615,5.96789936,2273.0,2272.5,6.02852542]
[1773661590824,5.96789936,2273.2,2272.5,6.02852542]
[1773661591215,5.96789936,2273.2,2272.5,6.03188019]
[1773661591415,8.419,2273.1,2272.5,6.03188019]
[1773661592026,6.93545438,2273.5,2272.5,6.03188019]
[1773661592319,14.38889936,2273.4,2272.5,6.25186019]
[1773661592519,0.00516881,2273.6,2272.5,6.25186019]
[1773661592715,0.00516881,2273.6,2273.2,6.02852542]
[1773661592915,5.97306817,2273.6,2273.2,6.02852542]
[1773661593420,0.00516881,2273.6,2273.2,6.02852542]
[1773661599917,5.97306817,2273.6,2273.2,6.02852542]
[1773661600527,0.00516881,2273.6,2273.2,6.02852542]
[1773661603128,5.96789936,2273.8,2273.2,6.02852542]
[1773661604128,5.97301295,2273.8,2273.2,6.02852542]
[1773661605227,0.00511359,2273.8,2273.2,6.02852542]
[1773661605829,5.96789936,2274.1,2273.4,6.02852542]
[1773661606824,5.97292753,2274.1,2273.4,6.02852542]
[1773661607732,0.00502817,2274.1,2273.4,6.02852542]
[1773661608124,5.96789936,2274.0,2273.4,6.02852542]
[1773661609825,5.97292753,2274.1,2273.4,6.02852542]
[1773661610324,0.00502817,2274.1,2273.4,6.02852542]
[1773661612929,6.10638915,2274.1,2273.4,6.02852542]
[1773661614035,6.10638915,2274.1,2273.2,5.74803995]
[1773661614327,0.00502817,2274.1,2273.2,5.74803995]
[1773661614623,6.10136098,2274.0,2273.2,5.74803995]
[1773661620234,6.10136098,2274.0,2273.3,5.68486505]
[1773661620635,6.10136098,2274.0,2273.4,5.68486505]
[1773661622231,6.10136098,2274.0,2273.5,5.68486505]
[1773661622429,0.00502817,2274.1,2273.5,5.68486505]
[1773661622632,8.48002817,2274.1,2273.5,5.68486505]
[1773661623127,6.11061016,2274.1,2273.4,5.52677116]
[1773661623437,6.11061016,2274.1,2273.4,11.21163621]
[1773661623637,6.11061016,2274.1,2273.5,5.68486505]
[1773661625029,6.11061016,2274.1,2273.4,11.21163621]
[1773661625236,6.11061016,2274.1,2273.2,5.68486505]
[1773661625237,6.10558199,2273.7,2273.2,5.68486505]
[1773661630332,6.10558199,2273.7,2273.0,5.68486505]
[1773661630740,6.10558199,2273.5,2273.0,5.68486505]
[1773661631034,7.07286451,2273.5,2272.8,11.21163621]
[1773661631237,6.10558199,2273.2,2272.6,5.68486505]
[1773661632636,14.59158199,2273.6,2272.6,5.90483505]
[1773661632936,14.59158199,2273.6,2272.7,5.68486505]
[1773661633335,14.59258199,2273.6,2272.7,5.68486505]
[1773661634840,6.10558199,2273.5,2272.7,6.65246316]
[1773661635241,6.10558199,2273.5,2272.8,5.68486505]
[1773661637041,6.10558199,2273.3,2272.8,5.68486505]
[1773661639438,6.10558199,2273.5,2272.8,5.68486505]
[1773661641334,6.10558199,2273.7,2273.0,5.68486505]
[1773661643641,5.67695935,2273.4,2272.8,10.95874292]
[1773661643945,5.67695935,2273.4,2272.9,5.43197176]
[1773661645742,5.67695935,2273.4,2272.8,5.43197176]
[1773661645941,6.64455746,2273.8,2273.0,5.43197176]
[1773661646142,5.67695935,2273.5,2273.0,5.43197176]
[1773661646444,5.67695935,2273.3,2272.8,5.43197176]
[1773661648248,5.67695935,2273.5,2272.8,5.43197176]
[1773661649746,0.96759811,2273.6,2272.8,5.43197176]
[1773661649949,6.64455746,2273.6,2272.8,5.43197176]
[1773661650851,15.15455746,2273.6,2272.8,5.43197176]
[1773661651050,5.67695935,2273.5,2272.8,5.43197176]
[1773661653949,5.67695935,2273.5,2273.0,5.43197176]
[1773661654752,14.18695935,2273.6,2273.0,5.65190176]
[1773661656246,5.67695935,2273.5,2273.0,5.65190176]
[1773661657440,8.515,2273.6,2273.0,5.65190176]
[1773661657644,5.67695935,2273.6,2273.0,5.65190176]
[1773661657848,14.19295935,2273.6,2273.0,5.65190176]
[1773661658247,5.67695935,2273.5,2273.0,5.65190176]
[1773661659249,5.67695935,2273.5,2273.0,0.21993]
[1773661659456,5.67695935,2273.5,2273.0,5.65190176]
[1773661662457,14.19895935,2273.5,2273.0,5.65190176]
[1773661662658,5.67695935,2273.4,2273.0,5.65190176]
[1773661663760,5.67695935,2273.6,2273.0,5.65190176]
[1773661663960,8.524,2273.5,2273.0,5.65190176]
[1773661664263,0.22243047,2274.1,2273.6,5.43197176]
[1773661664264,0.00502817,2274.1,2273.6,5.43197176]
[1773661664556,14.20095935,2274.2,2273.6,5.43197176]
[1773661665351,14.20639062,2274.2,2273.6,5.43197176]
[1773661669073,5.67695935,2274.1,2273.6,5.43197176]
[1773661673672,5.67695935,2274.1,2273.3,0.96759811]
[1773661673877,5.5765427,2273.8,2273.2,5.58107479]
[1773661674169,5.5765427,2273.8,2273.2,11.10784595]
[1773661674371,5.5765427,2273.6,2273.2,5.58107479]
[1773661674774,6.54414081,2273.6,2273.1,10.76076384]
[1773661675076,5.5765427,2273.6,2273.1,5.23399268]
[1773661680380,5.61891924,2273.5,2273.1,5.23399268]
[1773661681982,5.61891924,2273.5,2273.0,5.45392268]
[1773661683582,8.554,2273.6,2273.0,5.45392268]
[1773661683784,6.58651735,2273.7,2273.0,5.45392268]
[1773661683979,14.17891924,2273.6,2273.1,5.23399268]
[1773661684482,5.61891924,2273.6,2273.1,5.23399268]
[1773661684681,14.18091924,2273.6,2273.1,5.23399268]
[1773661684983,8.562,2273.6,2273.1,5.23399268]
[1773661685481,14.18091924,2273.6,2273.1,5.23399268]
[1773661685877,5.61891924,2273.5,2273.1,5.23399268]
[1773661687075,5.61891924,2273.2,2272.8,10.76076384]
[1773661687278,6.58651735,2273.3,2272.9,5.23399268]
[1773661688371,5.61891924,2273.3,2272.9,5.23399268]
[1773661689584,0.96759811,2273.5,2272.9,5.23399268]
[1773661689780,6.58651735,2273.5,2272.9,5.23399268]
[1773661690877,0.96759811,2273.3,2272.9,5.23399268]
[1773661691083,6.58651735,2273.3,2272.9,5.23399268]
[1773661691377,0.96759811,2273.1,2272.9,5.23399268]
[1773661691578,0.96759811,2273.1,2272.8,10.76076384]
[1773661691978,5.61891924,2273.2,2272.8,10.76076384]
[1773661693075,5.61891924,2273.2,2272.8,5.23399268]
[1773661695080,5.61891924,2273.2,2272.7,10.76076384]
[1773661695281,5.61891924,2273.2,2272.7,5.52677116]
[1773661695481,5.61891924,2273.2,2272.5,10.76411861]
[1773661696084,5.61891924,2273.2,2272.6,5.23399268]
[1773661697684,5.61891924,2273.1,2272.6,5.23399268]
[1773661704385,5.61891924,2273.1,2272.5,5.32816654]
[1773661704578,6.58679423,2273.1,2272.5,0.00335477]
[1773661704979,6.58679423,2273.1,2272.5,5.32816654]
[1773661706388,5.61891924,2273.1,2272.5,5.32816654]
[1773661710283,14.23591924,2273.1,2272.5,5.32816654]
[1773661710684,8.618,2273.2,2272.5,5.32816654]
[1773661710886,5.47821562,2273.3,2272.6,5.32481177]
[1773661711085,8.619,2273.3,2272.6,5.32481177]
[1773661711283,14.09721562,2273.3,2272.6,5.32481177]
[1773661713289,14.09721562,2273.3,2272.7,5.32481177]
[1773661715394,14.10621562,2273.3,2272.7,5.32481177]
[1773661717893,5.47821562,2273.2,2272.7,5.32481177]
[1773661719693,8.628,2273.3,2272.7,5.54477177]
[1773661719898,14.10621562,2273.3,2272.8,5.32481177]
[1773661721601,5.47821562,2273.2,2272.8,5.32481177]
[1773661721801,5.47821562,2273.2,2272.7,5.32481177]
[1773661721998,5.47821562,2273.2,2272.6,5.52677116]
[1773661722194,5.47821562,2273.2,2272.6,10.85158293]
[1773661723301,5.47821562,2273.2,2272.7,5.52677116]
[1773661724205,5.47821562,2273.2,2272.6,10.85158293]
[1773661724498,6.44609061,2273.2,2272.6,5.52677116]
[1773661724703,5.47821562,2273.2,2272.5,5.53012593]
[1773661726396,5.47821562,2273.0,2272.3,5.5385957]
[1773661726600,1.25846692,2272.8,2272.1,5.32481177]
[1773661727307,1.25846692,2272.8,2272.1,5.33004266]
[1773661747717,8.87153166,2272.9,2272.1,5.33004266]
[1773661748112,10.27232434,2272.9,2272.1,5.33004266]
[1773661749022,1.4107342,2272.8,2272.1,5.33004266]
[1773661751519,8.653,2272.9,2272.1,5.33004266]
[1773661753620,10.00524234,2272.9,2272.1,5.33004266]
[1773661754023,8.696,2273.0,2272.3,5.21521407]
[1773661755320,8.698,2273.0,2272.3,5.21521407]
[1773661756825,8.698,2273.0,2272.5,5.21521407]
[1773661758724,6.5614926,2273.0,2272.5,5.21521407]
[1773661758927,5.54075098,2273.0,2272.5,5.21521407]
[1773661764520,9.12477166,2273.0,2272.5,5.21521407]
[1773661765425,3.57335561,2272.9,2272.5,5.21521407]
[1773661765930,5.54075098,2273.0,2272.5,5.21521407]
[1773661766130,9.11524837,2273.0,2272.5,5.21521407]
[1773661766631,5.54075098,2273.0,2272.5,5.21521407]
[1773661766831,4.53803667,2273.3,2272.5,5.21521407]
[1773661767129,12.27710651,2273.2,2272.5,5.21521407]
[1773661768432,8.707,2273.2,2272.9,5.04852408]
[1773661769632,3.54581693,2273.4,2272.9,5.04852408]
[1773661769833,8.709,2273.5,2272.9,5.04852408]
[1773661770936,12.26539111,2273.5,2272.9,5.04852408]
[1773661774337,3.55639111,2273.5,2272.9,5.04852408]
[1773661774539,8.715,2273.5,2272.9,5.04852408]
[1773661774740,12.23987123,2273.6,2272.9,5.04852408]
[1773661775036,8.715,2273.6,2273.1,5.04852408]
[1773661779044,12.24783842,2273.7,2273.1,5.04852408]
[1773661779239,3.52583842,2273.7,2273.1,5.04852408]
[1773661779542,8.723,2273.7,2273.1,5.04852408]
[1773661781139,12.18974754,2273.7,2273.1,5.04852408]
[1773661781543,3.45549945,2273.6,2273.1,5.04852408]
[1773661781842,3.45549945,2273.6,2273.0,0.96793016]
[1773661781843,3.45468252,2273.3,2272.9,5.04852408]
[1773661787845,3.45468252,2273.3,2272.7,5.04852408]
[1773661796551,3.31619508,2273.1,2272.5,7.90620249]
[1773661796754,3.3165157,2272.7,2272.1,11.80652133]
[1773661797053,0.96793016,2272.8,2272.1,4.90031884]
[1773661797252,2.3165157,2272.8,2272.1,4.90031884]
[1773661799560,0.96793016,2272.7,2272.1,4.90031884]
[1773661799756,2.88886063,2272.7,2272.1,4.90031884]
[1773661800463,1.9140434,2272.6,2272.1,4.90031884]
[1773661800656,1.91931251,2272.6,2272.1,4.90031884]
[1773661801362,0.00526911,2272.6,2272.1,4.90031884]
[1773661802758,1.90226699,2272.6,2272.1,4.90031884]
[1773661803061,1.90226699,2272.6,2272.1,4.18231884]
[1773661804160,1.90226699,2272.6,2272.1,4.18800271]
[1773661805565,0.96793016,2272.5,2272.1,0.00568387]
[1773661805764,2.64811124,2272.4,2272.1,0.00568387]
[1773661806159,0.96793016,2272.3,2272.0,4.89508795]
[1773661806364,2.64811124,2272.4,2272.0,4.89508795]
[1773661806758,2.61403006,2272.2,2271.8,4.89508795]
[1773661807156,2.61403006,2272.2,2271.8,4.89982921]
[1773661807554,0.96793016,2272.1,2271.8,4.89982921]
[1773661807963,2.61403006,2272.2,2271.8,4.89982921]
[1773661808154,2.58984509,2272.3,2271.8,4.89982921]
[1773661808959,0.96793016,2272.5,2271.8,4.89982921]
[1773661809165,0.00526911,2272.6,2272.1,4.89508795]